bitfinex/quotes_SOLUSD_20250625
["timestamp","ask_amount","ask_price","bid_price","bid_amount"]
[1750862816965,10.67823952,146.53,146.49,10.67823952]
[1750862817482,11.3,146.54,146.48,10.67823952]
[1750862817685,10.67823952,146.52,146.48,10.67823952]
[1750862817866,11.3,146.54,146.48,10.67823952]
[1750862818182,10.67823952,146.53,146.45,23.89894161]
[1750862818560,10.67823952,146.52,146.45,23.89894161]
[1750862818763,10.67823952,146.52,146.48,10.67823952]
[1750862819069,18.12426666,146.54,146.45,23.89894161]
[1750862819263,11.3,146.54,146.45,23.89894161]
[1750862819572,10.67823952,146.51,146.47,10.67823952]
[1750862819780,11.3,146.54,146.47,10.67823952]
[1750862819962,10.67823952,146.51,146.47,10.67823952]
[1750862820160,10.67823952,146.51,146.46,10.67823952]
[1750862820369,10.67823952,146.51,146.47,6.82733665]
[1750862820580,24.97874886,146.58,146.47,23.89567828]
[1750862820581,6.3291,146.58,146.47,23.89567828]
[1750862820796,13.15140657,146.58,146.47,24.57841194]
[1750862820964,10.67823952,146.55,146.51,10.67823952]
[1750862821166,13.15140657,146.58,146.5,10.67823952]
[1750862821366,6.3291,146.58,146.52,10.67823952]
[1750862821597,27.5844,146.59,146.47,23.89567828]
[1750862821598,10.67823952,146.57,146.53,10.67823952]
[1750862821764,10.67823952,146.54,146.5,10.67823952]
[1750862821966,10.67823952,146.51,146.42,3.43060003]
[1750862822284,6.5882,146.53,146.42,23.90383826]
[1750862822589,10.67823952,146.48,146.43,10.67823952]
[1750862822774,6.82500682,146.52,146.43,10.67823952]
[1750862822975,10.67823952,146.47,146.42,6.82966807]
[1750862823175,18.64964886,146.51,146.42,17.50790759]
[1750862823377,18.64964886,146.51,146.42,6.82966807]
[1750862823687,18.64964886,146.51,146.42,17.50790759]
[1750862823887,10.67823952,146.47,146.42,17.50790759]
[1750862824092,10.67823952,146.5,146.42,6.82966807]
[1750862824389,6.82648739,146.49,146.42,6.82966807]
[1750862824777,10.67823952,146.45,146.39,6.83106769]
[1750862825177,10.67823952,146.45,146.41,10.67823952]
[1750862825384,10.67823952,146.46,146.39,23.90873692]
[1750862825587,6.82648739,146.49,146.39,23.90873692]
[1750862825766,10.67823952,146.45,146.4,10.67823952]
[1750862826086,6.82648739,146.49,146.39,6.83106769]
[1750862826087,18.64964886,146.48,146.39,6.83106769]
[1750862826404,39.7518,146.5,146.39,6.83106769]
[1750862826695,10.67823952,146.46,146.39,6.83106769]
[1750862826902,18.64964886,146.49,146.41,10.67823952]
[1750862827081,20.57783389,146.5,146.39,49.90873692]
[1750862827276,10.67823952,146.47,146.39,49.90873692]
[1750862827984,10.67823952,146.46,146.42,10.67823952]
[1750862828298,10.67823952,146.45,146.41,10.67823952]
[1750862828502,18.64964886,146.49,146.39,49.90873692]
[1750862828689,6.82640453,146.49,146.42,10.67823952]
[1750862828892,10.67823952,146.47,146.39,49.90873692]
[1750862829277,10.67823952,146.47,146.43,10.67823952]
[1750862829808,10.67823952,146.46,146.42,10.67823952]
[1750862829988,10.67823952,146.46,146.42,17.50753998]
[1750862830309,10.67823952,146.47,146.43,10.67823952]
[1750862830514,20.57774193,146.5,146.43,10.67823952]
[1750862830808,10.67823952,146.46,146.42,17.50753998]
[1750862831010,10.67823952,146.45,146.42,6.82930046]
[1750862831188,31.25598145,146.5,146.41,6.83002793]
[1750862831386,10.67823952,146.44,146.38,6.3671]
[1750862831590,18.64964886,146.46,146.38,17.04533952]
[1750862831895,10.67823952,146.43,146.39,17.50918198]
[1750862832425,6.82792084,146.46,146.39,6.83094246]
[1750862832920,10.67823952,146.44,146.4,10.67823952]
[1750862833085,32.82738363,146.47,146.4,10.67823952]
[1750862833286,10.67823952,146.46,146.42,10.67823952]
[1750862834315,10.67823952,146.47,146.39,17.07766923]
[1750862834496,10.67823952,146.46,146.39,17.07766923]
[1750862834890,10.67823952,146.46,146.42,10.67823952]
[1750862835131,22.79823952,146.5,146.45,10.67823952]
[1750862835418,22.79823952,146.5,146.42,6.0065]
[1750862835419,5.00916915,146.53,146.48,10.67823952]
[1750862835589,10.67823952,146.55,146.5,10.67823952]
[1750862835986,10.67823952,146.53,146.45,26.0]
[1750862836210,10.67823952,146.52,146.46,6.82780281]
[1750862836388,10.67823952,146.51,146.46,6.82780281]
[1750862836593,6.82421362,146.54,146.48,10.67823952]
[1750862836594,10.67823952,146.52,146.48,10.67823952]
[1750862837118,6.1143,146.57,146.5,10.67823952]
[1750862837306,6.1362759,146.6,146.5,6.1973]
[1750862837307,6.8212824,146.6,146.5,6.1973]
[1750862837491,10.67823952,146.53,146.46,30.36050984]
[1750862837696,10.67823952,146.53,146.46,56.36050984]
[1750862838101,10.67823952,146.53,146.49,10.67823952]
[1750862838293,10.67823952,146.53,146.48,10.67823952]
[1750862838529,10.67823952,146.52,146.48,10.67823952]
[1750862838889,10.67823952,146.5,146.46,17.506003]
[1750862839206,10.67823952,146.47,146.42,6.267]
[1750862839511,26.0,146.52,146.42,6.267]
[1750862839512,10.67823952,146.46,146.43,6.82920166]
[1750862839714,10.67823952,146.46,146.42,23.77473285]
[1750862840010,10.67823952,146.46,146.42,17.50773285]
[1750862840218,10.67823952,146.45,146.42,6.82949333]
[1750862840612,35.71412608,146.51,146.43,10.67823952]
[1750862840613,10.67823952,146.47,146.43,10.67823952]
[1750862840911,10.67823952,146.47,146.42,17.50773285]
[1750862841319,10.67823952,146.47,146.42,6.82949333]
[1750862841622,35.71412608,146.51,146.39,17.07753305]
[1750862841623,6.82593856,146.5,146.39,23.90860074]
[1750862841790,10.67823952,146.46,146.42,10.67823952]
[1750862842005,10.67823952,146.45,146.39,23.90860074]
[1750862842298,18.64964886,146.49,146.39,23.90860074]
[1750862842796,18.64964886,146.49,146.41,10.67823952]
[1750862843092,6.82687056,146.48,146.41,17.50809989]
[1750862843489,10.67823952,146.45,146.41,17.50809989]
[1750862843910,10.67823952,146.44,146.4,10.67823952]
[1750862844287,10.67823952,146.43,146.39,6.83106769]
[1750862844493,10.67823952,146.43,146.39,17.50930721]
[1750862844694,10.67823952,146.44,146.39,6.83106769]
[1750862845102,10.67823952,146.44,146.4,10.67823952]
[1750862845301,10.67823952,146.44,146.39,17.50930721]
[1750862845716,10.67823952,146.43,146.39,17.50930721]
[1750862845916,10.67823952,146.42,146.38,17.50966693]
[1750862846193,23.89749871,146.46,146.34,6.0776]
[1750862846194,10.67823952,146.4,146.34,6.0776]
[1750862846393,10.67823952,146.4,146.36,10.67823952]
[1750862846589,11.01736209,146.45,146.36,10.67823952]
[1750862846891,10.67823952,146.42,146.38,10.67823952]
[1750862847091,11.01694073,146.45,146.38,17.50938704]
[1750862849913,10.67823952,146.48,146.44,10.67823952]
[1750862850115,12.56602009,146.5,146.43,10.67823952]
[1750862850411,10.67823952,146.48,146.45,6.82826903]
[1750862850611,10.67823952,146.47,146.43,10.67823952]
[1750862850808,10.67823952,146.47,146.42,6.82966807]
[1750862851008,10.67823952,146.47,146.43,10.67823952]
[1750862851405,10.67823952,146.47,146.42,6.82966807]
[1750862851406,10.67823952,146.46,146.42,17.50790759]
[1750862851934,10.67823952,146.46,146.42,6.82966807]
[1750862852096,10.67823952,146.45,146.42,6.82966807]
[1750862852298,10.67823952,146.43,146.36,1.6644]
[1750862852608,10.67823952,146.42,146.37,10.67823952]
[1750862852822,10.67823952,146.41,146.37,10.67823952]
[1750862853117,18.64964886,146.44,146.37,10.67823952]
[1750862853318,10.67823952,146.41,146.37,10.67823952]
[1750862853902,10.67823952,146.41,146.35,17.08163781]
[1750862853903,10.67823952,146.41,146.35,23.91457255]
[1750862854107,10.67823952,146.41,146.37,10.67823952]
[1750862854318,10.67823952,146.41,146.36,10.67823952]
[1750862854620,6.82885575,146.44,146.37,10.67823952]
[1750862854930,10.67823952,146.39,146.35,17.51117426]
[1750862855108,10.67823952,146.38,146.35,6.83293474]
[1750862855504,11.85859237,146.44,146.35,17.51117426]
[1750862855707,10.67823952,146.41,146.37,10.67823952]
[1750862856219,10.67823952,146.42,146.38,6.83153436]
[1750862856529,45.36836746,146.45,146.38,17.50977388]
[1750862856914,38.54,146.45,146.38,17.50977388]
[1750862857222,10.67823952,146.42,146.38,17.50977388]
[1750862857406,10.67823952,146.42,146.38,6.83153436]
[1750862857614,10.67823952,146.42,146.38,17.50977388]
[1750862857839,10.67823952,146.43,146.38,6.83153436]
[1750862858006,10.67823952,146.43,146.39,10.67823952]
[1750862858206,10.67823952,146.43,146.4,6.83060109]
[1750862858416,10.67823952,146.42,146.4,6.83060109]
[1750862859227,6.4917,146.46,146.4,17.50884061]
[1750862859438,24.39343804,146.48,146.41,10.67823952]
[1750862859612,19.36701505,146.48,146.41,10.67823952]
[1750862859812,10.67823952,146.46,146.41,10.67823952]
[1750862860310,10.67823952,146.46,146.42,6.82966807]
[1750862860611,10.67823952,146.45,146.42,6.82966807]
[1750862860806,24.39508111,146.48,146.42,6.82966807]
[1750862861234,10.67823952,146.45,146.42,6.82966807]
[1750862861612,24.39508111,146.48,146.42,6.82966807]
[1750862861825,10.67823952,146.45,146.42,6.82966807]
[1750862862027,10.67823952,146.46,146.42,17.50790759]
[1750862862703,5.028044,146.48,146.43,10.67823952]
[1750862862947,10.67823952,146.47,146.43,10.67823952]
[1750862863110,5.028044,146.49,146.44,10.67823952]
[1750862863314,12.723844,146.5,146.42,23.90383826]
[1750862863522,10.67823952,146.48,146.44,10.67823952]
[1750862864215,10.67823952,146.47,146.43,10.67823952]
[1750862864441,10.67823952,146.46,146.42,6.82966807]
[1750862865619,10.67823952,146.47,146.42,17.50790759]
[1750862865808,5.028044,146.5,146.46,10.67823952]
[1750862866008,10.67823952,146.51,146.42,13.44006807]
[1750862866226,10.67823952,146.51,146.47,10.67823952]
[1750862866423,10.67823952,146.51,146.46,10.67823952]
[1750862866636,10.67823952,146.48,146.42,30.51423826]
[1750862866803,10.67823952,146.47,146.43,10.67823952]
[1750862867005,6.82642446,146.49,146.43,10.67823952]
[1750862867322,10.67823952,146.47,146.43,10.67823952]
[1750862867534,6.82642446,146.49,146.42,13.44006807]
[1750862867721,6.82642446,146.49,146.43,10.67823952]
[1750862867920,10.67823952,146.48,146.44,10.67823952]
[1750862868242,11.86736456,146.5,146.44,10.67823952]
[1750862868443,10.67823952,146.48,146.44,10.67823952]
[1750862868737,10.67823952,146.51,146.46,10.67823952]
[1750862868910,10.67823952,146.51,146.47,6.82733665]
[1750862869112,10.67823952,146.51,146.47,17.50557617]
[1750862869537,15.7196516,146.52,146.47,6.82733665]
[1750862869710,11.86645233,146.52,146.47,6.82733665]
[1750862869913,10.67823952,146.51,146.47,10.67823952]
[1750862870113,11.86645233,146.52,146.46,6.82764222]
[1750862870313,10.67823952,146.5,146.46,17.50588174]
[1750862870612,11.86645233,146.52,146.46,6.82764222]
[1750862870942,6.82554087,146.51,146.44,17.07106554]
[1750862871132,10.67823952,146.5,146.46,10.67823952]
[1750862871515,10.67823952,146.49,146.43,6.82920166]
[1750862871715,10.67823952,146.48,146.44,10.67823952]
[1750862871952,6.82554087,146.51,146.44,10.67823952]
[1750862872110,10.67823952,146.48,146.44,10.67823952]
[1750862872310,10.67823952,146.49,146.45,10.67823952]
[1750862872926,6.82554087,146.51,146.45,17.50620386]
[1750862873131,10.67823952,146.49,146.45,17.50620386]
[1750862873335,10.67823952,146.49,146.45,6.82796434]
[1750862873538,6.82554087,146.51,146.42,6.6104]
[1750862873714,10.67823952,146.47,146.42,6.6104]
[1750862874041,10.67823952,146.48,146.44,10.67823952]
[1750862874545,10.67823952,146.5,146.43,6.82901849]
[1750862874841,10.67823952,146.5,146.45,10.67823952]
[1750862875033,10.67823952,146.5,146.46,6.82780281]
[1750862875336,10.67823952,146.49,146.46,6.82780281]
[1750862875947,6.82554087,146.51,146.42,6.6104]
[1750862875948,10.67823952,146.48,146.44,10.67823952]
[1750862876132,10.67823952,146.48,146.43,6.82920166]
[1750862876443,10.67823952,146.48,146.43,17.50744118]
[1750862876619,6.82554087,146.51,146.41,10.67823952]
[1750862876620,29.32788838,146.5,146.41,10.67823952]
[1750862876825,10.67823952,146.45,146.41,10.67823952]
[1750862877217,10.67823952,146.46,146.42,17.50790759]
[1750862877420,11.8675548,146.5,146.44,10.67823952]
[1750862877619,10.67823952,146.48,146.42,6.82966807]
[1750862877829,11.8675548,146.5,146.43,10.67823952]
[1750862878068,10.67823952,146.48,146.43,10.67823952]
[1750862878541,11.8675548,146.5,146.43,10.67823952]
[1750862878729,10.67823952,146.48,146.43,10.67823952]
[1750862878920,11.8675548,146.5,146.43,10.67823952]
[1750862879115,10.67823952,146.47,146.44,6.82873531]
[1750862879316,6.82666106,146.49,146.44,6.82873531]
[1750862879517,10.67823952,146.48,146.44,6.82873531]
[1750862879820,10.67823952,146.47,146.44,6.82873531]
[1750862880221,10.67823952,146.47,146.43,6.82899474]
[1750862880429,11.86771478,146.5,146.44,10.67823952]
[1750862880636,11.86771478,146.5,146.43,6.82899474]
[1750862880836,25.47595156,146.5,146.43,6.82899474]
[1750862881143,10.67823952,146.48,146.45,6.82826903]
[1750862881327,11.86771478,146.5,146.45,6.82826903]
[1750862881525,6.8263027,146.5,146.42,17.50790759]
[1750862881854,10.67823952,146.45,146.39,8.1057]
[1750862882039,10.67823952,146.41,146.35,25.67802206]
[1750862882229,10.67823952,146.39,146.36,6.83246788]
[1750862882557,10.67823952,146.42,146.38,10.67823952]
[1750862882728,10.67823952,146.42,146.37,10.67823952]
[1750862883444,10.67823952,146.41,146.36,6.83246788]
[1750862883823,10.67823952,146.37,146.31,15.66463178]
[1750862884049,18.64964886,146.41,146.31,15.66463178]
[1750862884252,10.67823952,146.36,146.32,10.67823952]
[1750862884551,10.67823952,146.35,146.31,15.66463178]
[1750862884733,18.64964886,146.39,146.31,33.17754267]
[1750862884930,10.67823952,146.34,146.31,7.52883178]
[1750862885241,17.51267714,146.32,146.27,13.24612044]
[1750862885421,10.67823952,146.3,146.28,30.0]
[1750862885746,10.67823952,146.29,146.28,30.0]
[1750862885960,10.67823952,146.29,146.2,5.47842422]
[1750862886251,10.67823952,146.25,146.21,10.67823952]
[1750862886428,10.67823952,146.23,146.2,6.83994528]
[1750862886629,10.67823952,146.21,146.16,6.84181718]
[1750862886842,10.67823952,146.19,146.15,16.84217812]
[1750862887020,66.76964886,146.26,146.15,6.84217812]
[1750862887223,10.67823952,146.21,146.17,17.51958863]
[1750862887527,10.67823952,146.19,146.14,10.67823952]
[1750862887730,10.67823952,146.18,146.14,17.52099304]
[1750862887933,10.67823952,146.16,146.12,10.67823952]
[1750862888428,10.67823952,146.14,146.09,6.84509548]
[1750862888640,10.67823952,146.13,146.09,17.523335]
[1750862888826,10.67823952,146.14,146.1,10.67823952]
[1750862889147,10.67823952,146.16,146.09,49.9578342]
[1750862889446,48.12,146.26,146.15,10.67823952]
[1750862889743,48.12,146.26,146.1,23.95619437]
[1750862889744,26.0,146.25,146.13,26.0]
[1750862889941,10.67823952,146.22,146.13,26.0]
[1750862890146,10.67823952,146.21,146.17,10.67823952]
[1750862890321,10.67823952,146.21,146.16,10.67823952]
[1750862890830,18.64964886,146.22,146.13,26.0]
[1750862891033,26.0,146.23,146.14,10.67823952]
[1750862891034,10.67823952,146.18,146.14,10.67823952]
[1750862891444,18.64964886,146.22,146.15,17.52052484]
[1750862891633,10.67823952,146.2,146.16,10.67823952]
[1750862891834,10.67823952,146.22,146.18,10.67823952]
[1750862892043,10.67823952,146.22,146.15,6.84228532]
[1750862892234,10.67823952,146.22,146.18,10.67823952]
[1750862893033,10.67823952,146.25,146.2,10.67823952]
[1750862893634,10.67823952,146.24,146.2,17.51804694]
[1750862893847,18.64964886,146.26,146.2,6.83980742]
[1750862894049,10.67823952,146.22,146.2,6.83980742]
[1750862894437,10.67823952,146.23,146.2,6.83980742]
[1750862894956,44.55674296,146.27,146.21,10.67823952]
[1750862894957,10.67823952,146.25,146.21,10.67823952]
[1750862895133,44.55679047,146.27,146.2,6.83980742]
[1750862895334,44.55679047,146.27,146.16,6.6545]
[1750862895556,18.64964886,146.26,146.17,6.84134911]
[1750862895750,10.67823952,146.21,146.17,17.51958863]
[1750862896054,10.67823952,146.22,146.17,17.51958863]
[1750862896250,10.67823952,146.22,146.18,10.67823952]
[1750862896557,10.67823952,146.22,146.17,6.84134911]
[1750862896558,10.67823952,146.25,146.21,10.67823952]
[1750862897047,10.67823952,146.26,146.21,10.67823952]
[1750862897249,10.67823952,146.26,146.22,10.67823952]
[1750862897453,10.67823952,146.25,146.22,6.83899981]
[1750862897753,10.67823952,146.26,146.22,17.51723933]
[1750862898352,10.67823952,146.25,146.22,6.83899981]
[1750862898549,37.72,146.27,146.22,6.83899981]
[1750862898950,44.55674455,146.27,146.21,17.51759734]
[1750862899254,10.67823952,146.25,146.21,17.51759734]
[1750862899948,10.67823952,146.23,146.16,17.10373319]
[1750862900256,10.67823952,146.24,146.2,10.67823952]
[1750862901051,10.67823952,146.23,146.19,10.67823952]
[1750862901254,18.64964886,146.26,146.16,10.67823952]
[1750862901255,10.67823952,146.21,146.16,10.67823952]
[1750862901563,18.64964886,146.26,146.18,6.8408811]
[1750862901740,10.67823952,146.21,146.16,6.84181718]
[1750862901941,10.67823952,146.19,146.14,6.84275352]
[1750862902442,10.67823952,146.19,146.14,17.52099304]
[1750862902756,10.67823952,146.19,146.15,10.67823952]
[1750862903054,10.67823952,146.23,146.18,10.67823952]
[1750862903352,10.67823952,146.24,146.19,10.67823952]
[1750862903657,10.67823952,146.24,146.14,58.16340495]
[1750862903658,10.67823952,146.22,146.18,6.8408811]
[1750862903856,10.67823952,146.2,146.16,10.67823952]
[1750862904037,10.67823952,146.19,146.15,10.67823952]
[1750862904237,10.67823952,146.18,146.12,23.9529154]
[1750862904452,42.58127278,146.25,146.15,10.67823952]
[1750862904668,10.67823952,146.2,146.12,23.9529154]
[1750862904876,10.67823952,146.19,146.15,10.67823952]
[1750862905054,42.58127278,146.25,146.12,23.9529154]
[1750862905251,6.83807439,146.24,146.16,10.67823952]
[1750862905460,10.67823952,146.22,146.17,10.67823952]
[1750862905849,10.67823952,146.2,146.16,10.67823952]
[1750862906050,10.67823952,146.19,146.14,17.10655648]
[1750862906466,10.67823952,146.19,146.13,6.84322178]
[1750862906772,18.64964886,146.23,146.13,6.84322178]
[1750862907066,10.67823952,146.19,146.13,6.84322178]
[1750862907275,10.67823952,146.22,146.13,17.10805447]
[1750862907451,10.67823952,146.2,146.13,17.10805447]
[1750862907654,10.67823952,146.21,146.17,10.67823952]
[1750862907857,10.67823952,146.22,146.13,17.10805447]
[1750862908174,10.67823952,146.22,146.18,10.67823952]
[1750862908377,10.67823952,146.23,146.19,10.67823952]
[1750862908548,19.1576,146.33,146.17,27.6232]
[1750862908752,10.67823952,146.28,146.24,10.67823952]
[1750862909054,10.67823952,146.27,146.23,10.67823952]
[1750862909254,26.0,146.29,146.24,10.67823952]
[1750862909475,10.67823952,146.28,146.24,17.51603695]
[1750862909774,6.8349066,146.31,146.25,10.67823952]
[1750862909952,10.67823952,146.29,146.25,10.67823952]
[1750862910147,10.67823952,146.28,146.24,10.67823952]
[1750862910363,18.64964886,146.3,146.24,10.67823952]
[1750862910551,10.67823952,146.29,146.24,10.67823952]
[1750862911246,18.64964886,146.3,146.24,10.67823952]
[1750862911550,10.67823952,146.25,146.21,17.51755024]
[1750862911748,10.67823952,146.23,146.19,10.67823952]
[1750862911969,10.67823952,146.22,146.18,10.67823952]
[1750862912181,10.67823952,146.23,146.19,10.67823952]
[1750862912388,18.64964886,146.27,146.17,6.84134911]
[1750862912681,10.67823952,146.22,146.17,17.51958863]
[1750862912888,18.64964886,146.24,146.17,6.84134911]
[1750862913062,10.67823952,146.22,146.17,17.51958863]
[1750862913266,10.67823952,146.22,146.18,10.67823952]
[1750862913572,10.67823952,146.22,146.18,17.51904935]
[1750862913774,10.67823952,146.22,146.18,6.84080983]
[1750862913968,10.67823952,146.2,146.16,6.84169188]
[1750862914575,10.67823952,146.2,146.16,17.5199314]
[1750862914965,6.83864176,146.23,146.18,10.67823952]
[1750862915159,10.67823952,146.23,146.18,10.67823952]
[1750862915680,10.67823952,146.23,146.19,10.67823952]
[1750862915883,10.67823952,146.22,146.18,6.84070044]
[1750862916058,10.67823952,146.21,146.18,6.84070044]
[1750862916880,10.67823952,146.21,146.17,10.67823952]
[1750862917561,10.67823952,146.21,146.16,10.67823952]
[1750862917760,10.67823952,146.21,146.15,17.10461303]
[1750862917968,10.67823952,146.21,146.16,10.67823952]
[1750862918182,6.83950304,146.21,146.14,6.84275352]
[1750862918491,6.83950304,146.21,146.13,6.84307946]
[1750862918492,10.67823952,146.17,146.13,6.84307946]
[1750862918862,10.67823952,146.16,146.12,13.32690058]
[1750862919078,26.0,146.22,146.15,10.67823952]
[1750862919280,17.16164,146.25,146.21,10.67823952]
[1750862919481,17.51414714,146.29,146.24,10.67823952]
[1750862919664,10.67823952,146.29,146.25,10.67823952]
[1750862919866,10.67823952,146.29,146.2,10.67823952]
[1750862919867,17.514052,146.29,146.2,17.09921037]
[1750862920068,6.83581248,146.29,146.21,6.83947746]
[1750862920257,10.67823952,146.29,146.25,10.67823952]
[1750862920959,29.32788838,146.3,146.26,10.67823952]
[1750862921199,6.83399253,146.33,146.28,10.67823952]
[1750862921364,10.67823952,146.32,146.28,10.67823952]
[1750862921565,21.99823952,146.34,146.3,10.67823952]
[1750862921959,11.32,146.34,146.3,10.67823952]
[1750862922168,11.32,146.34,146.31,10.67823952]
[1750862922368,11.32,146.34,146.3,10.67823952]
[1750862922680,11.32,146.34,146.31,10.67823952]
[1750862923063,18.64964886,146.36,146.32,10.67823952]
[1750862923279,29.32788838,146.36,146.32,10.67823952]
[1750862923778,36.1604089,146.36,146.31,10.67823952]
[1750862924174,18.64964886,146.36,146.31,17.51293092]
[1750862924375,36.16038212,146.36,146.28,6.83620453]
[1750862924576,173.2821426,146.36,146.28,6.83620453]
[1750862924765,183.96038212,146.36,146.31,10.67823952]
[1750862925089,158.47823952,146.36,146.32,10.67823952]
[1750862925388,147.8,146.36,146.33,10.67823952]
[1750862925593,10.67823952,146.35,146.31,10.67823952]
[1750862925786,10.67823952,146.35,146.28,6.83620453]
[1750862925984,29.32788838,146.35,146.3,10.67823952]
[1750862926187,29.32788838,146.35,146.31,10.67823952]
[1750862926372,147.8,146.36,146.33,10.67823952]
[1750862926571,154.63251373,146.36,146.32,10.67823952]
[1750862926881,147.8,146.36,146.33,10.67823952]
[1750862928196,147.8,146.36,146.32,10.67823952]
[1750862928372,10.67823952,146.35,146.31,10.67823952]
[1750862928686,147.8,146.36,146.31,10.67823952]
[1750862928892,147.8,146.36,146.28,49.92671587]
[1750862929075,147.8,146.36,146.31,10.67823952]
[1750862929270,158.47823952,146.36,146.31,10.67823952]
[1750862929488,165.31085686,146.36,146.31,10.67823952]
[1750862929678,165.31085686,146.36,146.3,6.83515872]
[1750862929878,10.67823952,146.35,146.31,10.67823952]
[1750862930381,154.63261734,146.36,146.3,6.83515872]
[1750862930382,10.67823952,146.34,146.3,17.51348165]
[1750862930576,10.67823952,146.34,146.3,10.67823952]
[1750862930883,154.63261734,146.36,146.31,10.67823952]
[1750862931090,165.31085686,146.36,146.31,10.67823952]
[1750862931467,10.67823952,146.35,146.3,17.5133515]
[1750862931667,10.67823952,146.35,146.26,1.6189]
[1750862931668,10.67823952,146.33,146.26,1.6189]
[1750862931870,10.67823952,146.33,146.29,10.67823952]
[1750862932080,158.47823952,146.35,146.31,10.67823952]
[1750862932370,147.8,146.35,146.32,10.67823952]
[1750862932570,147.8,146.35,146.28,26.0]
[1750862932788,147.8,146.35,146.32,10.67823952]
[1750862934191,147.8,146.35,146.32,17.51255135]
[1750862934572,158.47823952,146.35,146.31,6.83468841]
[1750862934779,10.67823952,146.34,146.3,10.67823952]
[1750862935391,10.67823952,146.32,146.28,32.83605369]
[1750862935701,17.51264214,146.32,146.28,10.67823952]
[1750862935903,17.51264214,146.32,146.27,10.67823952]
[1750862936477,6.83413319,146.33,146.28,10.67823952]
[1750862936676,10.67823952,146.33,146.28,10.67823952]
[1750862936885,10.67823952,146.33,146.26,32.83713934]
[1750862937104,10.67823952,146.33,146.28,10.67823952]
[1750862937400,25.48315918,146.34,146.29,10.67823952]
[1750862937607,17.51218002,146.33,146.29,10.67823952]
[1750862937985,10.67823952,146.33,146.29,17.51388312]
[1750862938610,17.5121349,146.33,146.29,10.67823952]
[1750862938812,17.5121349,146.33,146.28,6.83599786]
[1750862939113,17.5121349,146.33,146.28,17.51423738]
[1750862939809,147.8,146.35,146.3,10.67823952]
[1750862940017,10.67823952,146.36,146.31,10.67823952]
[1750862940311,10.67823952,146.34,146.3,10.67823952]
[1750862940677,10.67823952,146.35,146.28,6.83599786]
[1750862940920,10.67823952,146.35,146.31,10.67823952]
[1750862941218,10.67823952,146.38,146.34,10.67823952]
[1750862941511,10.67823952,146.38,146.29,26.0]
[1750862941678,10.67823952,146.38,146.34,10.67823952]
[1750862941903,10.67823952,146.37,146.33,17.51188751]
[1750862942741,17.5098566,146.38,146.34,10.67823952]
[1750862943032,10.67823952,146.38,146.34,17.51156382]
[1750862943324,10.67823952,146.38,146.34,6.8333243]
[1750862943534,10.67823952,146.38,146.34,17.51156382]
[1750862944126,147.8,146.39,146.36,10.67823952]
[1750862944333,10.67823952,146.38,146.34,17.51156382]
[1750862944504,158.47823952,146.39,146.35,10.67823952]
[1750862944705,165.3094863,146.39,146.35,10.67823952]
[1750862945020,158.47823952,146.39,146.35,17.51116572]
[1750862945330,158.47823952,146.39,146.35,6.8329262]
[1750862946525,147.8,146.39,146.35,6.8329262]
[1750862946831,10.67823952,146.41,146.37,10.67823952]
[1750862947126,10.67823952,146.4,146.36,17.51045815]
[1750862947304,10.67823952,146.41,146.36,17.51045815]
[1750862949411,10.67823952,146.4,146.36,17.51045815]
[1750862949620,44.64964886,146.4,146.31,6.83480281]
[1750862949927,10.67823952,146.35,146.31,17.51304233]
[1750862951019,10.67823952,146.35,146.31,6.83480281]
[1750862951334,10.67823952,146.34,146.31,6.83480281]
[1750862951529,10.67823952,146.35,146.31,17.51304233]
[1750862951833,10.67823952,146.35,146.31,6.83480281]
[1750862952239,10.67823952,146.34,146.31,6.83480281]
[1750862952414,10.67823952,146.34,146.3,6.83526999]
[1750862952613,10.67823952,146.33,146.3,6.83526999]
[1750862953021,10.67823952,146.34,146.3,17.51350951]
[1750862954416,10.67823952,146.34,146.3,6.83526999]
[1750862954743,10.67823952,146.33,146.3,6.83526999]
[1750862955047,166.44964886,146.36,146.3,17.51350951]
[1750862955048,10.67823952,146.34,146.3,17.51350951]
[1750862955409,10.67823952,146.32,146.3,6.83526999]
[1750862955657,10.67823952,146.32,146.29,6.83540768]
[1750862955854,10.67823952,146.3,146.23,6.83854202]
[1750862956149,10.67823952,146.3,146.26,10.67823952]
[1750862956315,10.67823952,146.3,146.25,10.67823952]
[1750862956517,10.67823952,146.27,146.24,6.83807439]
[1750862956727,6.83514678,146.31,146.24,6.83807439]
[1750862956938,10.67823952,146.27,146.24,6.83807439]
[1750862957338,10.67823952,146.27,146.23,6.83838385]
[1750862957664,10.67823952,146.26,146.23,6.83838385]
[1750862958346,10.67823952,146.26,146.22,6.83888006]
[1750862958545,10.67823952,146.25,146.22,6.83888006]
[1750862959555,10.67823952,146.23,146.19,17.51865268]
[1750862959739,10.67823952,146.23,146.19,6.84041316]
[1750862960065,10.67823952,146.23,146.19,17.51865268]
[1750862960255,8.3271,146.27,146.19,6.84041316]
[1750862960256,6.83807439,146.24,146.19,6.84041316]
[1750862960467,18.64964886,146.25,146.19,17.51865268]